bitfinex/quotes_BTCUSD_20251208
["timestamp","ask_amount","ask_price","bid_price","bid_amount"]
[1765201830684,0.23063119,91712.0,91711.0,0.11772]
[1765201830963,0.01255722,91712.0,91711.0,0.33579634]
[1765201831503,0.01255722,91712.0,91711.0,0.35798522]
[1765201832611,0.00355722,91712.0,91711.0,0.35798522]
[1765201833220,0.00655722,91712.0,91711.0,0.33579634]
[1765201833401,0.00555722,91712.0,91711.0,0.33579634]
[1765201833749,0.00555722,91712.0,91711.0,0.33679634]
[1765201841206,0.00555722,91712.0,91711.0,0.11872]
[1765201841357,0.22363119,91712.0,91711.0,0.11872]
[1765201841563,0.00555722,91712.0,91711.0,0.11872]
[1765201841911,0.22363119,91712.0,91711.0,0.11872]
[1765201842961,0.54663119,91712.0,91711.0,0.001]
[1765201843213,0.5789791,91712.0,91711.0,0.001]
[1765201843959,0.5789791,91712.0,91670.0,0.01090869]
[1765201843960,0.21816198,91675.0,91672.0,0.01090845]
[1765201844179,0.21816008,91676.0,91674.0,0.02797672]
[1765201844417,0.21816198,91675.0,91674.0,0.02797672]
[1765201844911,0.21816198,91675.0,91674.0,0.06437672]
[1765201845102,0.21816198,91675.0,91674.0,0.12297672]
[1765201845363,0.21816198,91675.0,91674.0,0.06437672]
[1765201846052,0.21816198,91675.0,91674.0,0.12297672]
[1765201846519,0.22216198,91675.0,91674.0,0.12297672]
[1765201850989,0.22216198,91675.0,91674.0,0.06437672]
[1765201856833,0.22216198,91675.0,91674.0,0.12297672]
[1765201857168,0.22216198,91675.0,91674.0,0.06437672]
[1765201858338,0.22216198,91675.0,91674.0,0.00011672]
[1765201858548,0.54516198,91675.0,91674.0,0.00011672]
[1765201858979,0.56735797,91675.0,91674.0,0.00011672]
[1765201860476,0.54516198,91675.0,91674.0,0.00011672]
[1765201861866,0.56735797,91675.0,91674.0,0.00011672]
[1765201862181,0.67583725,91675.0,91674.0,0.00011672]
[1765201862363,0.56735797,91675.0,91674.0,0.00011672]
[1765201862760,0.56335797,91675.0,91674.0,0.00011672]
[1765201862951,0.57348104,91675.0,91674.0,0.00011672]
[1765201863150,0.58148104,91675.0,91674.0,0.00011672]
[1765201863378,0.57548104,91675.0,91674.0,0.00011672]
[1765201863579,0.57060505,91675.0,91674.0,0.00011672]
[1765201863750,0.56128505,91675.0,91674.0,0.00011672]
[1765201863981,0.56128505,91675.0,91674.0,0.03420672]
[1765201864195,0.24548198,91675.0,91674.0,0.03420672]
[1765201864602,0.23748198,91675.0,91674.0,0.03420672]
[1765201864802,0.23548198,91675.0,91674.0,0.03420672]
[1765201865003,0.21816198,91675.0,91674.0,0.03420672]
[1765201865245,0.22116198,91675.0,91674.0,0.03520672]
[1765201865586,0.21816198,91675.0,91674.0,0.03420672]
[1765201866083,0.22316198,91675.0,91674.0,0.00111672]
[1765201866285,0.21816198,91675.0,91674.0,0.00111672]
[1765201866479,0.21816198,91675.0,91674.0,0.00011672]
[1765201866729,0.54316198,91675.0,91674.0,0.00011672]
[1765201866936,0.56535797,91675.0,91674.0,0.00011672]
[1765201867516,0.56335797,91675.0,91674.0,0.00011672]
[1765201867747,0.54416198,91675.0,91674.0,0.00011672]
[1765201868084,0.54416198,91675.0,91674.0,0.03420672]
[1765201868290,0.22116198,91675.0,91674.0,0.08854672]
[1765201868802,0.22216198,91675.0,91674.0,0.03420672]
[1765201869189,0.22216198,91675.0,91674.0,0.08854672]
[1765201869989,0.004,91675.0,91674.0,0.30671108]
[1765201870197,0.004,91675.0,91674.0,0.08854672]
[1765201870503,0.22216198,91675.0,91674.0,0.03420672]
[1765201870889,0.21916198,91675.0,91674.0,0.08854672]
[1765201871142,0.01090762,91679.0,91674.0,0.08854672]
[1765201871369,0.22906028,91679.0,91678.0,0.03409]
[1765201871496,0.21816198,91675.0,91674.0,0.00111672]
[1765201871907,0.21816198,91675.0,91674.0,0.00011672]
[1765201872107,0.60678344,91675.0,91674.0,0.00011672]
[1765201872317,0.61694096,91675.0,91674.0,0.00011672]
[1765201872955,0.61794096,91675.0,91674.0,0.00011672]
[1765201873377,0.61694096,91675.0,91674.0,0.00011672]
[1765201873678,0.61994096,91675.0,91674.0,0.00011672]
[1765201874296,0.62094096,91675.0,91674.0,0.00011672]
[1765201874866,0.62094096,91675.0,91674.0,0.03424672]
[1765201875205,0.62094096,91675.0,91674.0,0.00011672]
[1765201876040,0.62094096,91675.0,91674.0,0.03424672]
[1765201876628,0.31526096,91675.0,91674.0,0.03424672]
[1765201876828,0.2323195,91675.0,91674.0,0.08672672]
[1765201877031,0.22216198,91675.0,91674.0,0.08672672]
[1765201877231,0.22216198,91675.0,91674.0,0.00011672]
[1765201877707,0.23132427,91675.0,91674.0,0.00011672]
[1765201877935,0.22116198,91675.0,91674.0,0.00011672]
[1765201878138,0.22116198,91675.0,91674.0,0.00111672]
[1765201878343,0.29694608,91675.0,91674.0,0.00111672]
[1765201878523,0.64214207,91675.0,91674.0,0.00011672]
[1765201878923,0.64314207,91675.0,91674.0,0.00011672]
[1765201879351,0.62094608,91675.0,91674.0,0.00011672]
[1765201879534,0.64314207,91675.0,91674.0,0.00011672]
[1765201880466,0.63914207,91675.0,91674.0,0.00011672]
[1765201880948,0.70766506,91675.0,91674.0,0.00011672]
[1765201881145,0.70766506,91675.0,91674.0,0.00111672]
[1765201881146,0.71066506,91675.0,91674.0,0.00111672]
[1765201884100,0.71066506,91675.0,91633.0,0.01091309]
[1765201884101,0.21824292,91641.0,91632.0,0.00023343]
[1765201884302,0.21824292,91641.0,91634.0,0.02619]
[1765201884303,0.22917007,91635.0,91634.0,0.02619]
[1765201884465,0.22917007,91635.0,91634.0,0.0265785]
[1765201884899,0.22917007,91635.0,91634.0,0.0607085]
[1765201885505,0.22917007,91635.0,91634.0,0.0647085]
[1765201885709,0.22917007,91635.0,91634.0,0.1171885]
[1765201886571,0.22917007,91635.0,91634.0,0.11880137]
[1765201886979,0.22917007,91635.0,91634.0,0.11580137]
[1765201887417,0.22917007,91635.0,91634.0,0.11780137]
[1765201888913,0.21825721,91635.0,91634.0,0.11780137]
[1765201889096,0.21825699,91636.0,91634.0,0.11780137]
[1765201889293,0.21825699,91636.0,91635.0,0.08661]
[1765201889496,0.22916479,91638.0,91635.0,0.08822287]
[1765201889732,0.22916257,91638.0,91637.0,0.03413]
[1765201889938,0.22916257,91638.0,91637.0,0.08661]
[1765201891150,0.22916257,91638.0,91637.0,0.08961]
[1765201895895,0.22916257,91638.0,91637.0,0.03713]
[1765201896613,0.22916257,91638.0,91637.0,0.08961]
[1765201897243,0.22916257,91638.0,91637.0,0.03713]
[1765201897443,0.29478403,91638.0,91637.0,0.003]
[1765201897788,0.4254593,91638.0,91637.0,0.003]
[1765201897995,0.31698002,91638.0,91637.0,0.003]
[1765201898417,0.29478403,91638.0,91637.0,0.003]
[1765201898626,0.21825721,91635.0,91634.0,0.0003885]
[1765201898839,0.2577732,91635.0,91634.0,0.0003885]
[1765201899436,0.23557721,91635.0,91634.0,0.0003885]
[1765201900477,0.23657721,91635.0,91634.0,0.0023885]
[1765201901365,0.55957721,91635.0,91634.0,0.0023885]
[1765201901552,0.5817732,91635.0,91634.0,0.0023885]
[1765201901902,0.59188814,91635.0,91634.0,0.0023885]
[1765201902112,0.59088814,91635.0,91634.0,0.0023885]
[1765201902651,0.59588814,91635.0,91634.0,0.0033885]
[1765201903319,0.59588814,91635.0,91634.0,0.0013885]
[1765201903495,0.60288814,91635.0,91634.0,0.0013885]
[1765201905182,0.77389041,91635.0,91634.0,0.0013885]
[1765201905580,0.66541113,91635.0,91634.0,0.0013885]
[1765201912993,0.64809113,91635.0,91634.0,0.0013885]
[1765201913198,0.66541113,91635.0,91634.0,0.0013885]
[1765201913610,0.60725812,91635.0,91634.0,0.0013885]
[1765201920039,0.56774213,91635.0,91634.0,0.0013885]
[1765201920270,0.60288814,91635.0,91634.0,0.0013885]
[1765201920480,0.71573728,91635.0,91634.0,0.0013885]
[1765201920681,0.77826027,91635.0,91634.0,0.0013885]
[1765201920837,0.66978099,91635.0,91634.0,0.0013885]
[1765201922320,0.66978099,91635.0,91600.0,0.0002]
[1765201922322,0.21833822,91601.0,91600.0,0.0002]
[1765201922531,0.24577316,91601.0,91600.0,0.00031683]
[1765201922949,0.24577316,91601.0,91600.0,0.00125095]
[1765201923793,0.56877316,91601.0,91600.0,0.00325095]
[1765201924000,0.59096915,91601.0,91600.0,0.00325095]
[1765201924209,0.65659061,91601.0,91600.0,0.00325095]
[1765201924617,0.65759061,91601.0,91600.0,0.00325095]
[1765201924833,0.63539462,91601.0,91600.0,0.00325095]
[1765201925033,0.63439462,91601.0,91600.0,0.00325095]
[1765201925530,0.63539462,91601.0,91600.0,0.00325095]
[1765201925945,0.63539462,91601.0,91600.0,0.00125095]
[1765201926282,0.63540609,91601.0,91600.0,0.00625095]
[1765201927691,0.61808609,91601.0,91600.0,0.00625095]
[1765201927893,0.62527968,91601.0,91600.0,0.03994095]
[1765201928111,0.62527968,91601.0,91600.0,0.00625095]
[1765201928315,0.54233822,91601.0,91600.0,0.00625095]
[1765201928531,0.21933822,91601.0,91600.0,0.08644095]
[1765201928733,0.21933822,91601.0,91600.0,0.08805382]
[1765201928998,0.001,91601.0,91600.0,0.08805382]
[1765201929557,0.001,91601.0,91600.0,0.08305382]
[1765201929923,0.001,91601.0,91600.0,0.08905382]
[1765201930152,0.001,91601.0,91600.0,0.08305382]
[1765201930592,0.001,91601.0,91600.0,0.09205382]
[1765201930964,0.002,91601.0,91600.0,0.09205382]
[1765201931170,0.22033822,91601.0,91600.0,0.09205382]
[1765201931475,0.21933822,91601.0,91600.0,0.09205382]
[1765201931663,0.22033822,91601.0,91600.0,0.09205382]
[1765201933252,0.002,91601.0,91600.0,0.09205382]
[1765201933650,0.22033822,91601.0,91600.0,0.09205382]
[1765201934229,0.002,91601.0,91600.0,0.09205382]
[1765201934647,0.002,91601.0,91600.0,0.31039443]
[1765201935253,0.002,91601.0,91600.0,0.09205382]
[1765201935547,0.22033822,91601.0,91600.0,0.09205382]
[1765201936362,0.22033822,91601.0,91600.0,0.31039443]
[1765201936363,0.002,91601.0,91600.0,0.31039443]
[1765201936751,0.002,91601.0,91600.0,0.09205382]
[1765201936956,0.002,91601.0,91600.0,0.31039443]
[1765201937162,0.002,91601.0,91600.0,0.09205382]
[1765201937699,0.002,91601.0,91600.0,0.31039443]
[1765201938908,0.002,91601.0,91600.0,0.34349879]
[1765201939115,0.002,91601.0,91600.0,0.32130991]
[1765201940186,0.001,91601.0,91600.0,0.31230991]
[1765201940400,0.01091548,91613.0,91606.0,0.01091631]
[1765201940598,0.01091571,91611.0,91607.0,0.01091619]
[1765201940840,0.21831224,91612.0,91608.0,0.01091607]
[1765201940841,0.22922784,91612.0,91608.0,0.01091607]
[1765201941072,0.01091583,91610.0,91607.0,0.27826907]
[1765201941288,0.21831448,91611.0,91609.0,0.2492685]
[1765201941426,0.21831677,91610.0,91608.0,0.04903]
[1765201941844,0.22923019,91611.0,91609.0,0.03095]
[1765201942048,0.22923019,91611.0,91610.0,0.03095]
[1765201942429,0.0109156,91612.0,91610.0,0.08159287]
[1765201942634,0.21830087,91617.0,91611.0,0.2492622]
[1765201942835,0.01091476,91619.0,91616.0,0.03095]
[1765201943085,0.21829771,91618.0,91613.0,0.02446]
[1765201943262,0.01091476,91619.0,91618.0,0.03095]
[1765201943462,0.21829482,91620.0,91618.0,0.03095]
[1765201943680,0.22919965,91624.0,91620.0,0.01091464]
[1765201943894,0.22920028,91623.0,91620.0,0.01091464]
[1765201944097,0.21828957,91622.0,91621.0,0.04903]
[1765201944721,0.21828957,91622.0,91621.0,0.07998]
[1765201944870,0.01091429,91623.0,91621.0,0.29827056]
[1765201945067,0.01091429,91623.0,91622.0,0.07998]
[1765201945290,0.001,91623.0,91622.0,0.29988105]
[1765201945657,0.21828266,91625.0,91622.0,0.29988105]
[1765201945855,0.22919671,91625.0,91624.0,0.03095]
[1765201946302,0.01091405,91625.0,91624.0,0.07998]
[1765201946503,0.22918273,91630.0,91626.0,0.21827839]
[1765201946705,0.22918745,91629.0,91627.0,0.04903]
[1765201946858,0.21827389,91628.0,91627.0,0.04903]
[1765201947317,0.21827389,91628.0,91627.0,0.07998]
[1765201948105,0.21828103,91625.0,91624.0,0.001]
[1765201948307,0.28390249,91625.0,91622.0,0.002]
[1765201948488,0.2182858,91623.0,91622.0,0.002]
[1765201948698,0.010915,91617.0,91614.0,0.01091536]
[1765201948896,0.22921994,91616.0,91613.0,0.25368278]
[1765201949100,0.21830501,91615.0,91614.0,0.04903]
[1765201949522,0.21830501,91615.0,91614.0,0.07998]
[1765201949749,0.21833346,91603.0,91602.0,0.07349]
[1765201949948,0.21832869,91605.0,91602.0,0.02446]
[1765201950204,0.22923623,91609.0,91605.0,0.22924485]
[1765201950414,0.01091595,91609.0,91605.0,0.22924485]
[1765201950640,0.01091488,91618.0,91611.0,0.01091571]
[1765201950806,0.001,91617.0,91616.0,0.01091512]
[1765201950981,0.001,91617.0,91615.0,0.21830456]
[1765201951182,0.001,91617.0,91616.0,0.03095]
[1765201951406,0.22920829,91620.0,91616.0,0.28199614]
[1765201951611,0.37765903,91640.0,91620.0,0.22920714]
[1765201951612,0.01091417,91624.0,91620.0,0.22920714]
[1765201951809,0.22919852,91624.0,91621.0,0.02446]
[1765201952134,0.22919852,91624.0,91623.0,0.03095]
[1765201952918,0.22919852,91624.0,91623.0,0.07998]
[1765201953539,0.22919852,91624.0,91615.0,0.01091524]
[1765201953540,0.21833107,91604.0,91600.0,0.04934683]
[1765201953941,0.21833107,91604.0,91603.0,0.08082652]
[1765201955569,0.21933107,91604.0,91603.0,0.08182652]
[1765201956349,0.21933107,91604.0,91603.0,0.08382652]
[1765201957127,0.21933107,91604.0,91603.0,0.03479652]
[1765201957455,0.21933107,91604.0,91603.0,0.08382652]
[1765201959662,0.21933107,91604.0,91603.0,0.00384652]
[1765201960147,0.21933107,91604.0,91603.0,0.03479652]
[1765201960387,0.21933107,91604.0,91603.0,0.08382652]
[1765201961121,0.21933107,91604.0,91603.0,0.08543939]
[1765201961592,0.21933107,91604.0,91603.0,0.00384652]
[1765201962773,0.21833107,91604.0,91603.0,0.03254652]
[1765201963227,0.21933107,91604.0,91603.0,0.03154652]
[1765201963477,0.22133107,91604.0,91603.0,0.03154652]
[1765201966564,0.28695253,91604.0,91603.0,0.00184652]
[1765201966762,0.30914852,91604.0,91603.0,0.00184652]
[1765201969489,0.23861107,91604.0,91603.0,0.07786652]
[1765201971787,0.22133107,91604.0,91603.0,0.07786652]
[1765201975235,0.22033107,91604.0,91603.0,0.07686652]
[1765201975651,0.21933107,91604.0,91603.0,0.07786652]
[1765201979176,0.21933107,91604.0,91603.0,0.07764989]
[1765201979658,0.21933107,91604.0,91603.0,0.09983877]
[1765201980088,0.21933107,91604.0,91603.0,0.07764989]
[1765201984037,0.001,91604.0,91603.0,0.07926276]
[1765201984945,0.21933107,91604.0,91603.0,0.07735276]
[1765201985476,0.21903555,91604.0,91603.0,0.07735276]
[1765201986165,0.00070448,91604.0,91603.0,0.07735276]
[1765201986707,0.21903555,91604.0,91603.0,0.07735276]
[1765201990984,0.21903555,91604.0,91603.0,0.03294276]
[1765201991228,0.21903555,91604.0,91603.0,0.03132989]
[1765201991414,0.21903555,91604.0,91603.0,0.00162989]
[1765201995687,0.25138514,91604.0,91603.0,0.00162989]
[1765201996617,0.25338514,91604.0,91603.0,0.00162989]
[1765201997147,0.63820365,91604.0,91603.0,0.00062989]
[1765201997294,0.66159084,91604.0,91603.0,0.00062989]
[1765201997499,0.66496235,91604.0,91603.0,0.00062989]
[1765201997699,0.66896235,91604.0,91603.0,0.00062989]
[1765201997948,0.66796235,91604.0,91603.0,0.00062989]
[1765201998295,0.66996235,91604.0,91603.0,0.00162989]
[1765202003957,0.65980875,91604.0,91603.0,0.00162989]
[1765202004203,0.66993157,91604.0,91603.0,0.00162989]
[1765202005197,0.64654438,91604.0,91603.0,0.00162989]
[1765202005605,0.66986072,91604.0,91603.0,0.00162989]
[1765202006974,0.68714072,91604.0,91603.0,0.00162989]
[1765202007194,0.66382438,91604.0,91603.0,0.00162989]
[1765202007476,0.68713499,91604.0,91603.0,0.00162989]
[1765202007902,0.68513499,91604.0,91603.0,0.00062989]
[1765202008195,0.69113499,91604.0,91603.0,0.00062989]
[1765202008604,0.68713499,91604.0,91603.0,0.00062989]
[1765202009021,0.69813499,91604.0,91603.0,0.00062989]
[1765202009843,0.67482438,91604.0,91603.0,0.00062989]
[1765202010480,0.67481764,91604.0,91603.0,0.00062989]
[1765202015022,0.67481764,91604.0,91600.0,1e-08]
[1765202015023,0.6260572,91601.0,91600.0,1e-08]
[1765202015227,0.6260572,91601.0,91580.0,0.0002]
[1765202015228,0.62610488,91581.0,91580.0,0.0002]
[1765202015499,0.65350096,91581.0,91580.0,0.00031675]
[1765202015635,0.62612873,91571.0,91546.0,0.02257]
[1765202015847,0.63624481,91571.0,91546.0,0.02257]
[1765202016329,0.72443627,91571.0,91546.0,0.02257]
[1765202017049,0.72643627,91571.0,91546.0,0.02257]
[1765202017204,0.72642587,91571.0,91546.0,0.02257]
[1765202018545,0.72642587,91571.0,91540.0,0.0002]
[1765202018716,0.85817077,91571.0,91570.0,0.00300001]
[1765202018929,0.74969149,91571.0,91570.0,0.00300001]
[1765202019320,0.74769149,91571.0,91570.0,0.00300001]
[1765202019526,0.75169149,91571.0,91570.0,1e-08]
[1765202019933,0.75469149,91571.0,91570.0,0.00100001]
[1765202020363,0.76069149,91571.0,91570.0,0.00100001]
[1765202020566,0.77302645,91571.0,91570.0,0.00100001]
[1765202020785,0.76068101,91571.0,91570.0,0.00100001]
[1765202020924,0.73741539,91571.0,91570.0,0.00100001]
[1765202021124,0.75469539,91571.0,91570.0,0.00196378]
[1765202021877,0.54145985,91550.0,91549.0,0.01953378]
[1765202022074,0.21845985,91550.0,91549.0,0.02126353]
[1765202022232,0.21845985,91550.0,91549.0,0.04998353]
[1765202022432,0.21845985,91550.0,91549.0,0.05059709]
[1765202022773,0.21845985,91550.0,91549.0,0.09333709]
[1765202023176,0.21945985,91550.0,91549.0,0.09733709]
[1765202023378,0.21945985,91550.0,91549.0,0.31179933]
[1765202023379,0.001,91550.0,91549.0,0.31179933]
[1765202023788,0.22936074,91559.0,91556.0,0.21844426]
[1765202024059,0.01092191,91559.0,91557.0,0.21844299]
[1765202024202,0.22936029,91559.0,91558.0,0.02907057]
[1765202024407,0.22936029,91559.0,91558.0,0.07181057]
[1765202024796,0.22936029,91559.0,91558.0,0.07342344]
[1765202025471,0.23036029,91559.0,91558.0,0.07342344]
[1765202025663,0.22936001,91561.0,91558.0,0.09561232]
[1765202025664,0.22935601,91561.0,91558.0,0.09561232]
[1765202025863,0.001,91559.0,91558.0,0.02380175]
[1765202026065,0.002,91559.0,91558.0,0.25024229]
[1765202026271,0.001,91559.0,91558.0,0.27896229]
[1765202026392,0.001,91559.0,91558.0,0.32170229]
[1765202026607,0.002,91559.0,91558.0,0.32170229]
[1765202027009,0.002,91559.0,91558.0,0.29951341]
[1765202027440,0.002,91559.0,91558.0,0.08107287]
[1765202028179,0.002,91559.0,91558.0,0.10292287]
[1765202029500,0.002,91559.0,91558.0,0.32136363]
[1765202029668,0.22043838,91559.0,91558.0,0.10292287]
[1765202039153,0.22043838,91559.0,91558.0,0.10131]
[1765202039358,0.22043838,91559.0,91558.0,0.05857]
[1765202039563,0.22043838,91559.0,91558.0,0.05892057]
[1765202039763,0.22043838,91559.0,91558.0,0.10089057]
[1765202047329,0.22043838,91559.0,91558.0,0.00835057]
[1765202047851,0.57577307,91559.0,91558.0,0.00835057]
[1765202048438,0.57477307,91559.0,91558.0,0.00835057]
[1765202048845,0.57577307,91559.0,91558.0,0.00835057]
[1765202049192,0.55357708,91559.0,91558.0,0.00835057]
[1765202050007,0.57085708,91559.0,91558.0,0.03533057]
[1765202052217,0.57085708,91559.0,91558.0,0.00835057]
[1765202052576,0.59305307,91559.0,91558.0,0.00835057]
[1765202052912,0.59305307,91559.0,91558.0,0.00805505]
[1765202054177,0.57085708,91559.0,91558.0,0.03557505]
[1765202054378,0.5708652,91559.0,91558.0,0.03557505]
[1765202054991,0.5535852,91559.0,91558.0,0.03557505]
[1765202055195,0.5535852,91559.0,91558.0,0.00805505]
[1765202055196,0.54343838,91559.0,91558.0,0.00805505]
[1765202055529,0.56071838,91559.0,91558.0,0.00805505]
[1765202056448,0.59306184,91559.0,91558.0,0.00805505]
[1765202057640,0.57086585,91559.0,91558.0,0.00805505]
[1765202057792,0.59306184,91559.0,91558.0,0.00805505]
[1765202058169,0.58291437,91559.0,91558.0,0.00805505]
[1765202058464,0.5930575,91559.0,91558.0,0.00805505]
[1765202065413,0.5920575,91559.0,91558.0,0.00805505]
[1765202065615,0.5970575,91559.0,91558.0,0.00805505]
[1765202066440,0.5960575,91559.0,91558.0,0.00035057]
[1765202068342,0.5960575,91559.0,91558.0,0.00335057]
[1765202069559,0.5960575,91559.0,91558.0,0.00035057]
[1765202069701,0.5990575,91559.0,91558.0,0.00035057]
[1765202070514,0.22643838,91559.0,91558.0,0.07177344]
[1765202070728,0.008,91559.0,91558.0,0.07177344]
[1765202071138,0.003,91559.0,91558.0,0.2902142]
[1765202071332,0.003,91559.0,91558.0,0.31240308]
[1765202071579,0.21842234,91566.0,91560.0,0.01092179]
[1765202071759,0.21842168,91566.0,91561.0,0.21843131]
[1765202071954,0.22933441,91570.0,91561.0,0.21843131]
[1765202071955,0.01092036,91572.0,91567.0,0.01092096]
[1765202072239,0.21840737,91572.0,91571.0,0.02752]
[1765202072722,0.21840737,91572.0,91571.0,0.06981]
[1765202072924,0.21840737,91572.0,91571.0,0.07142287]
[1765202073443,0.22932579,91573.0,91571.0,0.07142287]
[1765202073444,0.21840601,91573.0,91571.0,0.07142287]
[1765202073686,0.21840601,91573.0,91572.0,0.06981]
[1765202074087,0.21840498,91573.0,91572.0,0.06981]
[1765202074522,0.21840498,91573.0,91572.0,0.02752]
[1765202074671,0.21840737,91572.0,91571.0,0.00861287]
[1765202074869,0.21840737,91572.0,91571.0,0.00161287]
[1765202075980,0.21840737,91572.0,91571.0,0.03613287]
[1765202075981,0.21940737,91572.0,91571.0,0.03613287]
[1765202076131,0.22040737,91572.0,91571.0,0.03613287]
[1765202076686,0.002,91572.0,91571.0,0.07842287]
[1765202076816,0.002,91572.0,91571.0,0.29683262]
[1765202078255,0.002,91572.0,91571.0,0.3190215]
[1765202078953,0.001,91572.0,91571.0,0.3190215]
[1765202079149,0.01091846,91588.0,91585.0,0.21837609]
[1765202079351,0.21836694,91589.0,91587.0,0.02752]
[1765202079555,0.01091822,91590.0,91588.0,0.02752]
[1765202079763,0.2292828,91590.0,91589.0,0.02752]
[1765202079968,0.22927558,91593.0,91589.0,0.03843834]
[1765202080194,0.21836348,91591.0,91590.0,0.06447888]
[1765202080407,0.21836348,91591.0,91590.0,0.06981]
[1765202082218,0.21836348,91591.0,91590.0,0.02752]
[1765202082413,0.21836921,91588.0,91587.0,0.02229]
[1765202082622,0.21836921,91588.0,91587.0,0.02129]
[1765202082797,0.21836921,91588.0,91587.0,0.04698]
[1765202083200,0.21837637,91585.0,91584.0,0.02129]
[1765202083602,0.21837637,91585.0,91584.0,0.04698]
[1765202084214,0.21837637,91585.0,91584.0,0.08722]
[1765202085180,0.21937637,91585.0,91584.0,0.08722]
[1765202085644,0.21937637,91585.0,91584.0,0.08922]
[1765202085846,0.21937637,91585.0,91584.0,0.09083287]
[1765202086195,0.21937637,91585.0,91584.0,0.08883287]
[1765202086847,0.001,91585.0,91584.0,0.11502175]
[1765202087259,0.21937637,91585.0,91584.0,0.11502175]
[1765202087463,0.21937637,91585.0,91584.0,0.09283287]
[1765202087663,0.21837637,91585.0,91584.0,0.09283287]
[1765202087910,0.2183426,91600.0,91584.0,0.09283287]
[1765202088068,0.22927766,91592.0,91591.0,0.02569]
[1765202088491,0.00011647,91593.0,91591.0,0.284291]
[1765202088811,0.00011647,91593.0,91592.0,0.24404968]
[1765202089044,0.00011647,91593.0,91592.0,0.28428968]
[1765202089192,0.00011647,91593.0,91592.0,0.06593]
[1765202089461,0.00011647,91593.0,91592.0,0.28428968]
[1765202089660,0.00011647,91593.0,91592.0,0.30809143]
[1765202090166,0.00011647,91593.0,91592.0,0.31009143]
[1765202090703,0.21847376,91593.0,91592.0,0.06954287]
[1765202091632,0.21847376,91593.0,91592.0,0.02769]
[1765202092029,0.21847376,91593.0,91592.0,0.06793]
[1765202099911,0.21847376,91593.0,91592.0,0.002]
[1765202100465,0.24066975,91593.0,91592.0,0.002]
[1765202100968,0.21839067,91579.0,91578.0,0.0365]
[1765202101169,0.21839783,91576.0,91573.0,0.0205]
[1765202102558,0.21839783,91576.0,91575.0,0.02329]
[1765202102737,0.21839783,91576.0,91575.0,0.08652]
[1765202104593,0.21839783,91576.0,91575.0,0.05002]
[1765202104801,0.21839783,91576.0,91575.0,0.002]
[1765202105298,0.22853513,91576.0,91575.0,0.002]
[1765202105956,0.21841691,91568.0,91567.0,0.01992]
[1765202106293,0.21841691,91568.0,91567.0,0.08315]
[1765202107752,0.21941691,91568.0,91567.0,0.08515]
[1765202109681,0.21941691,91568.0,91567.0,0.30518216]
[1765202109682,0.001,91568.0,91567.0,0.30518216]
[1765202111737,0.21941691,91568.0,91567.0,0.08676287]
[1765202112438,0.21941691,91568.0,91567.0,0.02192]
[1765202112640,0.21941691,91568.0,91567.0,0.002]
[1765202113490,0.5646129,91568.0,91567.0,0.002]
[1765202113811,0.57473491,91568.0,91567.0,0.002]
[1765202114594,0.57473491,91568.0,91562.0,0.00023371]
[1765202114595,0.21842884,91563.0,91562.0,0.00023371]
[1765202114791,0.23570884,91563.0,91562.0,0.00023371]
[1765202114999,0.21842884,91563.0,91562.0,0.02649371]
[1765202115207,0.23570884,91563.0,91562.0,0.06541371]
[1765202115806,0.23570884,91563.0,91562.0,0.02649371]
[1765202116269,0.23570884,91563.0,91562.0,0.00023371]
[1765202116603,0.23570884,91563.0,91562.0,0.02649371]
[1765202117226,0.23670884,91563.0,91562.0,0.02649371]
[1765202117689,0.23670884,91563.0,91562.0,0.02749371]
[1765202117883,0.23570884,91563.0,91562.0,0.02749371]
[1765202118085,0.23570884,91563.0,91562.0,0.02849371]
[1765202118291,0.23670884,91563.0,91562.0,0.02849371]
[1765202118870,0.21942884,91563.0,91562.0,0.06741371]
[1765202119187,0.21942884,91563.0,91562.0,0.02849371]
[1765202119412,0.21942884,91563.0,91562.0,0.06741371]
[1765202120141,0.001,91563.0,91562.0,0.08960259]
[1765202120341,0.001,91563.0,91562.0,0.09121546]
[1765202120658,0.21942884,91563.0,91562.0,0.09121546]
[1765202121053,0.21942884,91563.0,91562.0,0.06902658]
[1765202122390,0.001,91563.0,91562.0,0.06902658]
[1765202122750,0.001,91563.0,91562.0,0.2874578]
[1765202122978,0.001,91563.0,91562.0,0.06902658]
[1765202123391,0.001,91563.0,91562.0,0.2874578]
[1765202123915,0.001,91563.0,91562.0,0.30964668]
[1765202124061,0.001,91563.0,91562.0,0.2874578]
[1765202127224,0.001,91563.0,91562.0,0.30964668]
[1765202127601,0.06562146,91572.0,91569.0,0.22933296]
[1765202127821,0.06562146,91572.0,91571.0,0.04569]
[1765202128211,0.06562146,91572.0,91571.0,0.30463262]
[1765202128625,0.06562146,91572.0,91571.0,0.08622287]
[1765202128824,0.28402883,91572.0,91571.0,0.08622287]
[1765202129422,0.28402883,91572.0,91571.0,0.04569]
[1765202129684,0.26402883,91572.0,91571.0,0.04569]
[1765202129833,0.21840737,91572.0,91571.0,0.04569]
[1765202130014,0.21940737,91572.0,91571.0,0.05169]
[1765202130635,0.21840737,91572.0,91571.0,0.04569]
[1765202131062,0.21940737,91572.0,91571.0,0.04569]
[1765202131431,0.21940737,91572.0,91571.0,0.04669]
[1765202133831,0.28502883,91572.0,91571.0,0.001]
[1765202134050,0.28502883,91572.0,91571.0,0.02726]
[1765202134218,0.28502883,91572.0,91571.0,0.06618]
[1765202134428,0.28502883,91572.0,91571.0,0.02726]
[1765202135257,0.21940737,91572.0,91571.0,0.02726]
[1765202135485,0.21940737,91572.0,91571.0,0.06618]
[1765202141340,0.21940737,91572.0,91571.0,0.06779287]
[1765202144232,0.001,91572.0,91571.0,0.06779287]
[1765202144634,0.21940737,91572.0,91571.0,0.06779287]
[1765202149856,0.001,91572.0,91571.0,0.06779287]
[1765202150060,0.001,91572.0,91571.0,0.28620262]
[1765202150892,0.001,91572.0,91571.0,0.3083915]
[1765202153464,0.001,91572.0,91571.0,0.28620262]
[1765202154092,0.001,91572.0,91571.0,0.3083915]
[1765202157440,0.21940737,91572.0,91571.0,0.06779287]
[1765202157638,0.001,91572.0,91571.0,0.28620262]
[1765202157994,0.001,91572.0,91571.0,0.06779287]
[1765202158228,0.21940737,91572.0,91571.0,0.06779287]
[1765202158427,0.001,91572.0,91571.0,0.28620262]
[1765202159548,0.21940737,91572.0,91571.0,0.001]
[1765202160351,0.5747368,91572.0,91571.0,0.001]
[1765202160934,0.5737368,91572.0,91571.0,0.001]
[1765202161342,0.5777368,91572.0,91571.0,0.002]
[1765202162331,0.577731,91572.0,91571.0,0.001]
[1765202162531,0.582731,91572.0,91571.0,0.001]